[Event "Ruzomberok Closed 2020 - 3. turnaj"]
[Site "Ruzomberok, Slovakia"]
[Date "2020.09.05"]
[Round "2.5"]
[White "Konkolova, Nikola"]
[Black "Sustek, Adam"]
[Result "0-1"]
[TimeControl "10m + 5s"]
[WhiteElo "1483"]
[BlackElo "1377"]

1. e4 {[%clk 00:10:07]} {[%emt 00:00:02]} e6 {[%clk 00:10:10]} {[%emt
00:00:01]} 2. d4 {[%clk 00:10:09]} {[%emt 00:00:02]} d5 {[%clk 00:10:13]}
{[%emt 00:00:01]} 3. exd5 {[%clk 00:10:11]} {[%emt 00:00:04]} exd5 {[%clk
00:10:16]} {[%emt 00:00:01]} 4. Nf3 {[%clk 00:10:09]} {[%emt 00:00:07]} Bd6
{[%clk 00:10:13]} {[%emt 00:00:08]} 5. Bd3 {[%clk 00:10:08]} {[%emt 00:00:06]}
Nc6 {[%clk 00:10:15]} {[%emt 00:00:04]} 6. c3 {[%clk 00:10:10]} {[%emt
00:00:03]} Nge7 {[%clk 00:10:17]} {[%emt 00:00:02]} 7. O-O {[%clk 00:10:10]}
{[%emt 00:00:04]} O-O {[%clk 00:10:20]} {[%emt 00:00:03]} 8. Be3 {[%clk
00:10:12]} {[%emt 00:00:04]} Bf5 {[%clk 00:10:23]} {[%emt 00:00:02]} 9. Bxf5
{[%clk 00:09:52]} {[%emt 00:00:25]} Nxf5 {[%clk 00:10:27]} {[%emt 00:00:01]} 10.
Qd3 {[%clk 00:09:52]} {[%emt 00:00:04]} Qd7 {[%clk 00:10:20]} {[%emt 00:00:12]}
11. Nbd2 {[%clk 00:09:37]} {[%emt 00:00:20]} Rfe8 {[%clk 00:10:00]} {[%emt
00:00:25]} 12. Rae1 {[%clk 00:08:50]} {[%emt 00:00:53]} a6 {[%clk 00:08:39]}
{[%emt 00:01:26]} 13. h3 {[%clk 00:07:45]} {[%emt 00:01:09]} f6 {[%clk
00:06:55]} {[%emt 00:01:49]} 14. Nh2 {[%clk 00:06:29]} {[%emt 00:01:21]} Nxe3
{[%clk 00:05:45]} {[%emt 00:01:16]} 15. Rxe3 {[%clk 00:06:26]} {[%emt
00:00:09]} Rxe3 {[%clk 00:05:48]} {[%emt 00:00:02]} 16. fxe3 {[%clk 00:06:25]}
{[%emt 00:00:06]} Bxh2+ {[%clk 00:04:02]} {[%emt 00:01:51]} 17. Kxh2 {[%clk
00:06:28]} {[%emt 00:00:03]} Qd6+ {[%clk 00:04:06]} 18. Kh1 {[%clk 00:06:31]}
{[%emt 00:00:02]} Qg3 {[%clk 00:04:07]} {[%emt 00:00:04]} 19. Qe2 {[%clk
00:06:03]} {[%emt 00:00:32]} Re8 {[%clk 00:03:48]} {[%emt 00:00:24]} 20. Rf3
{[%clk 00:05:43]} {[%emt 00:00:26]} Qg6 {[%clk 00:03:20]} {[%emt 00:00:33]} 21.
Qf2 {[%clk 00:05:04]} {[%emt 00:00:43]} Qc2 {[%clk 00:02:35]} {[%emt 00:00:51]}
22. Nf1 {[%clk 00:04:42]} {[%emt 00:00:26]} Qb1 {[%clk 00:02:06]} {[%emt
00:00:33]} 23. a3 {[%clk 00:04:45]} {[%emt 00:00:03]} Na5 {[%clk 00:02:04]}
{[%emt 00:00:08]} 24. Kh2 {[%clk 00:04:27]} {[%emt 00:00:22]} Nc4 {[%clk
00:01:37]} {[%emt 00:00:31]} 25. Rg3 {[%clk 00:04:17]} {[%emt 00:00:15]} Kf8
{[%clk 00:00:59]} {[%emt 00:00:43]} 26. Qf4 {[%clk 00:03:36]} {[%emt 00:00:46]}
Re7 {[%clk 00:00:44]} {[%emt 00:00:21]} 27. b4 {[%clk 00:02:42]} {[%emt
00:00:59]} Qc1 {[%clk 00:00:33]} {[%emt 00:00:16]} 28. Qf3 {[%clk 00:02:16]}
{[%emt 00:00:30]} c6 {[%clk 00:00:25]} {[%emt 00:00:15]} 29. Qf5 {[%clk
00:01:50]} {[%emt 00:00:30]} h6 {[%clk 00:00:21]} {[%emt 00:00:09]} 30. Qh7
{[%clk 00:01:30]} {[%emt 00:00:25]} Qxf1 {[%clk 00:00:15]} {[%emt 00:00:11]} 31.
Qh8+ {[%clk 00:01:32]} {[%emt 00:00:03]} Kf7 {[%clk 00:00:20]} {[%emt
00:00:01]} 32. Rxg7+ {[%clk 00:01:31]} {[%emt 00:00:06]} Ke6 {[%clk 00:00:24]}
{[%emt 00:00:01]} 33. Qg8+ {[%clk 00:01:33]} {[%emt 00:00:02]} Kd7 {[%clk
00:00:25]} {[%emt 00:00:04]} 34. Rxe7+ {[%clk 00:01:16]} {[%emt 00:00:22]} Kxe7
{[%clk 00:00:29]} {[%emt 00:00:01]} 35. Qg7+ {[%clk 00:01:16]} {[%emt
00:00:05]} Ke6 {[%clk 00:00:31]} {[%emt 00:00:03]} 36. Qxb7 {[%clk 00:01:02]}
{[%emt 00:00:19]} Nxe3 {[%clk 00:00:29]} {[%emt 00:00:07]} 37. Qxc6+ {[%clk
00:01:03]} {[%emt 00:00:05]} Kf5 {[%clk 00:00:31]} {[%emt 00:00:02]} 38. Qd7+
{[%clk 00:00:59]} {[%emt 00:00:10]} Ke4 {[%clk 00:00:19]} {[%emt 00:00:17]} 39.
Qh7+ {[%clk 00:00:45]} {[%emt 00:00:18]} Nf5 {[%clk 00:00:13]} {[%emt
00:00:11]} 40. g4 {[%clk 00:00:28]} {[%emt 00:00:22]} Qf2+ {[%clk 00:00:12]}
{[%emt 00:00:06]} 41. Kh1 {[%clk 00:00:32]} {[%emt 00:00:02]} Qf3+ {[%clk
00:00:13]} {[%emt 00:00:04]} 42. Kg1 {[%clk 00:00:34]} {[%emt 00:00:03]} Qg3+
{[%clk 00:00:16]} {[%emt 00:00:03]} 43. Kf1 {[%clk 00:00:30]} {[%emt 00:00:09]}
Qxh3+ {[%clk 00:00:19]} {[%emt 00:00:02]} 44. Kf2 {[%clk 00:00:33]} {[%emt
00:00:03]} Qxg4 {[%clk 00:00:20]} {[%emt 00:00:04]} 45. a4 {[%clk 00:00:33]}
{[%emt 00:00:05]} Qg7 {[%clk 00:00:21]} {[%emt 00:00:03]} 46. Qxg7 {[%clk
00:00:34]} {[%emt 00:00:05]} Nxg7 {[%emt 00:00:02]} 47. b5 {[%clk 00:00:37]}
{[%emt 00:00:01]} axb5 {[%clk 00:00:26]} {[%emt 00:00:03]} 48. axb5 {[%clk
00:00:41]} {[%emt 00:00:01]} Ne6 {[%clk 00:00:30]} {[%emt 00:00:01]} 49. b6
{[%clk 00:00:39]} {[%emt 00:00:07]} Nd8 {[%clk 00:00:34]} 50. Ke2 {[%clk
00:00:42]} {[%emt 00:00:02]} h5 {[%clk 00:00:38]} 51. Kf2 {[%clk 00:00:38]}
{[%emt 00:00:09]} Kd3 {[%clk 00:00:41]} 52. Kg3 {[%clk 00:00:41]} {[%emt
00:00:01]} Kxc3 {[%clk 00:00:45]} {[%emt 00:00:02]} 53. Kh4 {[%clk 00:00:45]}
{[%emt 00:00:01]} Kxd4 {[%clk 00:00:48]} {[%emt 00:00:03]} 54. Kxh5 {[%clk
00:00:49]} Ke4 {[%clk 00:00:49]} {[%emt 00:00:03]} 0-1

[Event "Ruzomberok Closed 2020 - 3. turnaj"]
[Site "Ruzomberok, Slovakia"]
[Date "2020.09.05"]
[Round "2.6"]
[White "Gasper, Peter"]
[Black "Ciglian, Michal"]
[Result "0-1"]
[TimeControl "10m + 5s"]
[WhiteElo "1650"]
[BlackElo "1388"]

1. c4 {[%clk 00:08:55]} {[%emt 00:01:15]} e5 {[%clk 00:10:07]} {[%emt
00:00:03]} 2. Nc3 {[%clk 00:08:59]} {[%emt 00:00:01]} Nf6 {[%clk 00:10:08]}
{[%emt 00:00:05]} 3. e4 {[%clk 00:09:01]} {[%emt 00:00:03]} Nc6 {[%clk
00:10:09]} {[%emt 00:00:03]} 4. d3 {[%clk 00:09:05]} {[%emt 00:00:01]} Bc5
{[%clk 00:10:09]} {[%emt 00:00:04]} 5. Be3 {[%clk 00:09:09]} {[%emt 00:00:02]}
Bb6 {[%clk 00:10:13]} {[%emt 00:00:01]} 6. a3 {[%clk 00:09:09]} {[%emt
00:00:05]} O-O {[%clk 00:10:15]} {[%emt 00:00:03]} 7. Nf3 {[%clk 00:09:06]}
{[%emt 00:00:09]} d6 {[%clk 00:10:15]} {[%emt 00:00:04]} 8. Be2 {[%clk
00:09:03]} {[%emt 00:00:08]} Be6 {[%clk 00:10:04]} {[%emt 00:00:17]} 9. O-O
{[%clk 00:08:56]} {[%emt 00:00:11]} Ng4 {[%clk 00:09:38]} {[%emt 00:00:31]} 10.
Bxb6 {[%clk 00:08:54]} {[%emt 00:00:07]} axb6 {[%clk 00:09:42]} {[%emt
00:00:01]} 11. h3 {[%clk 00:08:52]} {[%emt 00:00:07]} Nf6 {[%clk 00:09:42]}
{[%emt 00:00:04]} 12. d4 {[%clk 00:08:34]} {[%emt 00:00:23]} exd4 {[%clk
00:09:35]} {[%emt 00:00:12]} 13. Nxd4 {[%clk 00:08:38]} {[%emt 00:00:02]} Nxd4
{[%clk 00:09:38]} {[%emt 00:00:03]} 14. Qxd4 {[%clk 00:08:41]} {[%emt
00:00:01]} Qd7 {[%clk 00:09:27]} {[%emt 00:00:16]} 15. f4 {[%clk 00:08:34]}
{[%emt 00:00:12]} Qe7 {[%clk 00:08:00]} {[%emt 00:01:32]} 16. Bf3 {[%clk
00:08:25]} {[%emt 00:00:13]} Nd7 {[%clk 00:07:32]} {[%emt 00:00:33]} 17. Rae1
{[%clk 00:08:17]} {[%emt 00:00:14]} Nc5 {[%clk 00:06:19]} {[%emt 00:01:18]} 18.
b4 {[%clk 00:08:16]} {[%emt 00:00:06]} Nb3 {[%clk 00:06:15]} {[%emt 00:00:09]}
19. Nd5 {[%clk 00:07:18]} {[%emt 00:01:04]} Bxd5 {[%clk 00:06:10]} {[%emt
00:00:09]} 20. exd5 {[%clk 00:07:21]} {[%emt 00:00:02]} Qxe1 {[%clk 00:06:13]}
{[%emt 00:00:02]} 21. Rxe1 {[%clk 00:07:23]} {[%emt 00:00:03]} Nxd4 {[%clk
00:06:16]} {[%emt 00:00:02]} 22. Re3 {[%clk 00:06:53]} {[%emt 00:00:35]} Nxf3+
{[%clk 00:06:18]} {[%emt 00:00:03]} 23. Rxf3 {[%clk 00:06:56]} {[%emt
00:00:01]} g6 {[%clk 00:06:19]} {[%emt 00:00:04]} 24. Kf2 {[%clk 00:06:37]}
{[%emt 00:00:25]} Rfe8 {[%clk 00:06:21]} {[%emt 00:00:02]} 25. Rc3 {[%clk
00:06:22]} {[%emt 00:00:20]} c5 {[%clk 00:05:48]} {[%emt 00:00:38]} 26. dxc6
{[%clk 00:06:10]} {[%emt 00:00:18]} bxc6 {[%clk 00:05:52]} {[%emt 00:00:02]} 27.
Rd3 {[%clk 00:06:12]} {[%emt 00:00:02]} Re6 {[%clk 00:05:43]} {[%emt 00:00:14]}
28. g4 {[%clk 00:06:08]} {[%emt 00:00:10]} f5 {[%clk 00:05:46]} {[%emt
00:00:02]} 29. gxf5 {[%clk 00:06:08]} {[%emt 00:00:05]} gxf5 {[%clk 00:05:49]}
{[%emt 00:00:01]} 30. Kf3 {[%clk 00:06:09]} {[%emt 00:00:04]} Kf7 {[%clk
00:05:50]} {[%emt 00:00:04]} 31. c5 {[%clk 00:05:55]} {[%emt 00:00:19]} bxc5
{[%clk 00:05:45]} {[%emt 00:00:10]} 32. bxc5 {[%clk 00:05:59]} {[%emt
00:00:01]} d5 {[%clk 00:05:48]} {[%emt 00:00:02]} 33. Rb3 {[%clk 00:06:03]}
{[%emt 00:00:02]} Re7 {[%clk 00:05:49]} {[%emt 00:00:04]} 34. Kg3 {[%clk
00:06:02]} {[%emt 00:00:05]} Ra5 {[%clk 00:05:50]} {[%emt 00:00:05]} 35. Rc3
{[%clk 00:06:04]} {[%emt 00:00:03]} Re4 {[%clk 00:05:51]} {[%emt 00:00:03]} 0-1

[Event "Ruzomberok Closed 2020 - 3. turnaj"]
[Site "Ruzomberok, Slovakia"]
[Date "2020.09.05"]
[Round "2.7"]
[White "Grib, Stefan"]
[Black "Jurky, Marian"]
[Result "0-1"]
[TimeControl "10m + 5s"]
[WhiteElo "1429"]
[BlackElo "1347"]

1. d4 {[%emt 00:00:07]} d5 {[%clk 00:10:04]} 2. Bf4 {[%clk 00:10:10]} {[%emt
00:00:04]} c5 {[%clk 00:10:01]} {[%emt 00:00:08]} 3. c3 {[%clk 00:10:11]}
{[%emt 00:00:04]} Nc6 {[%clk 00:10:04]} {[%emt 00:00:02]} 4. e3 {[%clk
00:10:14]} {[%emt 00:00:02]} Bf5 {[%clk 00:10:06]} {[%emt 00:00:03]} 5. Bd3
{[%clk 00:10:16]} {[%emt 00:00:03]} Bg6 {[%clk 00:10:08]} {[%emt 00:00:02]} 6.
Nf3 {[%clk 00:10:14]} {[%emt 00:00:07]} e6 {[%clk 00:10:10]} {[%emt 00:00:04]}
7. h4 {[%clk 00:10:04]} {[%emt 00:00:14]} h5 {[%clk 00:09:30]} {[%emt
00:00:45]} 8. Bxg6 {[%emt 00:00:20]} fxg6 {[%emt 00:00:06]} 9. Qd3 {[%clk
00:09:39]} {[%emt 00:00:05]} Nge7 {[%clk 00:08:39]} {[%emt 00:00:57]} 10. Nbd2
{[%clk 00:09:26]} {[%emt 00:00:18]} Nf5 {[%clk 00:07:20]} {[%emt 00:01:24]} 11.
Ne5 {[%clk 00:08:51]} {[%emt 00:00:40]} Nxe5 {[%clk 00:07:12]} {[%emt
00:00:13]} 12. Bxe5 {[%clk 00:08:53]} {[%emt 00:00:03]} c4 {[%clk 00:07:14]}
{[%emt 00:00:04]} 13. Qc2 {[%clk 00:08:51]} {[%emt 00:00:06]} Bd6 {[%clk
00:06:59]} {[%emt 00:00:20]} 14. Nf3 {[%clk 00:07:42]} {[%emt 00:01:14]} O-O
{[%clk 00:06:15]} {[%emt 00:00:49]} 15. Bxd6 {[%clk 00:07:03]} {[%emt
00:00:44]} Qxd6 {[%clk 00:05:49]} {[%emt 00:00:31]} 16. Ne5 {[%clk 00:06:39]}
{[%emt 00:00:29]} Rf6 {[%clk 00:04:44]} {[%emt 00:01:09]} 17. O-O-O {[%clk
00:06:33]} {[%emt 00:00:12]} Raf8 {[%clk 00:04:07]} {[%emt 00:00:42]} 18. g4
{[%clk 00:05:39]} {[%emt 00:00:59]} Ne7 {[%clk 00:03:26]} {[%emt 00:00:46]} 19.
f4 {[%clk 00:05:07]} {[%emt 00:00:37]} b5 {[%clk 00:03:09]} {[%emt 00:00:22]}
20. gxh5 {[%clk 00:04:59]} {[%emt 00:00:13]} gxh5 {[%clk 00:02:59]} {[%emt
00:00:15]} 21. Qe2 {[%clk 00:05:01]} {[%emt 00:00:03]} Rh6 {[%clk 00:02:14]}
{[%emt 00:00:50]} 22. Rdg1 {[%clk 00:04:57]} {[%emt 00:00:09]} Nf5 {[%clk
00:01:29]} {[%emt 00:00:50]} 23. Kc2 {[%clk 00:02:55]} {[%emt 00:02:08]} a5
{[%clk 00:01:11]} {[%emt 00:00:24]} 24. Rg5 {[%clk 00:02:39]} {[%emt 00:00:20]}
Rff6 {[%clk 00:00:30]} {[%emt 00:00:45]} 25. Rxh5 {[%clk 00:02:32]} {[%emt
00:00:14]} Ng3 {[%clk 00:00:21]} {[%emt 00:00:14]} 26. Qg4 {[%clk 00:02:14]}
{[%emt 00:00:22]} Nxh5 {[%clk 00:00:22]} {[%emt 00:00:04]} 27. Rg1 {[%clk
00:02:12]} {[%emt 00:00:07]} Qf8 {[%clk 00:00:10]} {[%emt 00:00:16]} 28. Nd7
{[%clk 00:02:06]} {[%emt 00:00:12]} Qf7 {[%clk 00:00:08]} {[%emt 00:00:07]} 29.
Nxf6+ {[%clk 00:02:08]} {[%emt 00:00:03]} Nxf6 {[%clk 00:00:11]} {[%emt
00:00:02]} 30. Qg5 {[%clk 00:02:06]} {[%emt 00:00:07]} Ne4 {[%clk 00:00:08]}
{[%emt 00:00:08]} 31. Qe5 {[%clk 00:01:59]} {[%emt 00:00:12]} Rg6 {[%clk
00:00:07]} {[%emt 00:00:06]} 32. Qb8+ {[%clk 00:02:01]} {[%emt 00:00:04]} Kh7
{[%emt 00:00:03]} 33. Rxg6 {[%clk 00:01:38]} {[%emt 00:00:26]} Qxg6 {[%clk
00:00:14]} {[%emt 00:00:01]} 34. b3 {[%clk 00:01:32]} {[%emt 00:00:11]} Qg2+
{[%clk 00:00:17]} {[%emt 00:00:02]} 35. Kb1 {[%clk 00:01:36]} {[%emt 00:00:01]}
Qf1+ {[%clk 00:00:18]} {[%emt 00:00:04]} 36. Kb2 {[%clk 00:01:40]} {[%emt
00:00:02]} cxb3 {[%clk 00:00:10]} {[%emt 00:00:13]} 37. Qe5 {[%clk 00:01:22]}
{[%emt 00:00:22]} Nf6 {[%clk 00:00:08]} {[%emt 00:00:08]} 38. Qxe6 {[%clk
00:00:58]} {[%emt 00:00:29]} Qf2+ {[%clk 00:00:08]} {[%emt 00:00:05]} 39. Kxb3
{[%clk 00:01:01]} {[%emt 00:00:02]} Qxh4 {[%clk 00:00:11]} {[%emt 00:00:01]} 40.
Qf5+ {[%clk 00:00:58]} {[%emt 00:00:08]} Kh8 {[%clk 00:00:10]} {[%emt
00:00:06]} 41. Qc8+ {[%clk 00:00:54]} {[%emt 00:00:09]} Kh7 {[%clk 00:00:14]}
{[%emt 00:00:01]} 42. Qf5+ {[%clk 00:00:57]} {[%emt 00:00:02]} Kh6 {[%clk
00:00:16]} {[%emt 00:00:02]} 43. a4 {[%clk 00:00:47]} {[%emt 00:00:16]} bxa4+
{[%clk 00:00:07]} {[%emt 00:00:13]} 44. Kxa4 {[%clk 00:00:51]} {[%emt
00:00:01]} Qg4 {[%clk 00:00:10]} {[%emt 00:00:03]} 45. Qd3 {[%clk 00:00:15]}
{[%emt 00:00:41]} Qd7+ {[%clk 00:00:06]} {[%emt 00:00:08]} 46. Kxa5 {[%clk
00:00:10]} {[%emt 00:01:37]} Qc7+ {[%clk 00:00:07]} {[%emt 00:00:01]} 47. Kb4
{[%clk 00:00:14]} {[%emt 00:00:02]} Qd6+ {[%clk 00:00:11]} {[%emt 00:00:01]} 48.
Kb3 {[%clk 00:00:18]} {[%emt 00:00:01]} Ne4 {[%clk 00:00:15]} 49. Qe2 {[%clk
00:00:06]} {[%emt 00:00:16]} Qb6+ {[%clk 00:00:14]} {[%emt 00:00:07]} 50. Kc2
{[%clk 00:00:10]} {[%emt 00:00:01]} Qc6 {[%clk 00:00:17]} {[%emt 00:00:02]} 51.
Qh2+ {[%clk 00:00:10]} {[%emt 00:00:04]} Kg6 {[%clk 00:00:20]} {[%emt
00:00:01]} 52. Qg2+ {[%clk 00:00:11]} {[%emt 00:00:05]} Kf7 {[%clk 00:00:24]}
{[%emt 00:00:01]} 0-1

[Event "Ruzomberok Closed 2020 - 3. turnaj"]
[Site "Ruzomberok, Slovakia"]
[Date "2020.09.05"]
[Round "3.1"]
[White "Konkol, Emil"]
[Black "Gasper, Jaroslav"]
[Result "1-0"]
[TimeControl "10m + 5s"]
[WhiteElo "1799"]
[BlackElo "1721"]

1. e4 {[%clk 00:10:08]} {[%emt 00:00:01]} d5 {[%clk 00:10:10]} 2. exd5 {[%clk
00:10:11]} {[%emt 00:00:02]} c6 {[%clk 00:10:15]} 3. dxc6 {[%clk 00:10:14]}
{[%emt 00:00:02]} Nxc6 {[%clk 00:10:19]} 4. Nf3 {[%clk 00:10:16]} {[%emt
00:00:02]} Bg4 {[%clk 00:10:24]} 5. Be2 {[%clk 00:10:19]} {[%emt 00:00:03]} e6
{[%clk 00:10:26]} {[%emt 00:00:03]} 6. O-O {[%clk 00:10:21]} {[%emt 00:00:03]}
h5 {[%clk 00:10:31]} 7. c3 {[%clk 00:10:22]} {[%emt 00:00:04]} Bd6 {[%clk
00:10:34]} {[%emt 00:00:03]} 8. d4 {[%clk 00:10:24]} {[%emt 00:00:02]} Qc7
{[%clk 00:10:37]} {[%emt 00:00:02]} 9. h3 {[%clk 00:10:19]} {[%emt 00:00:10]}
O-O-O {[%clk 00:10:41]} {[%emt 00:00:02]} 10. Nbd2 {[%clk 00:09:34]} {[%emt
00:00:49]} Nf6 {[%clk 00:10:29]} {[%emt 00:00:18]} 11. Nc4 {[%clk 00:08:49]}
{[%emt 00:00:49]} Bf4 {[%clk 00:09:34]} {[%emt 00:01:01]} 12. Bxf4 {[%clk
00:08:29]} {[%emt 00:00:25]} Qxf4 {[%clk 00:09:37]} {[%emt 00:00:02]} 13. Nfe5
{[%clk 00:08:01]} {[%emt 00:00:32]} Nxe5 {[%clk 00:04:20]} {[%emt 00:05:23]} 14.
Nxe5 {[%clk 00:08:03]} {[%emt 00:00:02]} Rdf8 {[%clk 00:02:44]} {[%emt
00:01:41]} 15. g3 {[%clk 00:07:20]} {[%emt 00:00:48]} Qe4 {[%clk 00:01:31]}
{[%emt 00:01:17]} 16. f3 {[%clk 00:06:36]} {[%emt 00:00:50]} Qe3+ {[%clk
00:01:35]} 17. Kg2 {[%clk 00:06:40]} {[%emt 00:00:01]} Bf5 {[%clk 00:01:24]}
{[%emt 00:00:17]} 18. Nc4 {[%clk 00:06:14]} {[%emt 00:00:30]} Qg5 {[%clk
00:01:16]} {[%emt 00:00:12]} 19. Qb3 {[%clk 00:05:57]} {[%emt 00:00:22]} Rd8
{[%clk 00:00:59]} {[%emt 00:00:23]} 20. Ne5 {[%clk 00:06:00]} {[%emt 00:00:02]}
h4 {[%clk 00:00:53]} {[%emt 00:00:11]} 21. g4 {[%clk 00:04:50]} {[%emt
00:01:14]} Qf4 {[%clk 00:00:57]} {[%emt 00:00:01]} 22. Rg1 {[%clk 00:04:15]}
{[%emt 00:00:40]} Rhf8 {[%clk 00:00:55]} {[%emt 00:00:08]} 23. gxf5 {[%clk
00:04:00]} {[%emt 00:00:20]} Nh5 {[%clk 00:00:55]} {[%emt 00:00:05]} 24. Nxf7
{[%clk 00:03:20]} {[%emt 00:00:45]} Qxf5 {[%clk 00:00:41]} {[%emt 00:00:19]} 25.
Qc4+ {[%clk 00:02:40]} {[%emt 00:00:44]} Kb8 {[%clk 00:00:44]} {[%emt
00:00:03]} 26. Nxd8 {[%clk 00:02:01]} {[%emt 00:00:43]} Nf4+ {[%clk 00:00:48]}
{[%emt 00:00:01]} 27. Kf2 {[%clk 00:01:59]} {[%emt 00:00:04]} Nxh3+ {[%clk
00:00:52]} {[%emt 00:00:04]} 28. Kf1 {[%clk 00:01:43]} {[%emt 00:00:19]} Nxg1
{[%clk 00:00:47]} {[%emt 00:00:12]} 29. Kxg1 {[%clk 00:01:47]} Rxd8 {[%clk
00:00:50]} {[%emt 00:00:03]} 30. Kf2 {[%clk 00:01:34]} {[%emt 00:00:17]} Qf4
{[%clk 00:00:54]} {[%emt 00:00:02]} 31. Qxe6 {[%clk 00:01:13]} {[%emt
00:00:25]} Qg3+ {[%clk 00:00:58]} {[%emt 00:00:02]} 32. Ke3 {[%clk 00:01:14]}
{[%emt 00:00:02]} Qg5+ {[%clk 00:01:01]} {[%emt 00:00:03]} 33. Kd3 {[%clk
00:01:08]} {[%emt 00:00:11]} Qb5+ {[%clk 00:01:00]} {[%emt 00:00:07]} 34. Kc2
{[%clk 00:01:06]} {[%emt 00:00:07]} Qa4+ {[%clk 00:01:02]} {[%emt 00:00:03]} 35.
b3 {[%clk 00:01:09]} {[%emt 00:00:02]} Qa5 {[%clk 00:01:02]} {[%emt 00:00:05]}
36. Qe5+ {[%clk 00:01:08]} {[%emt 00:00:06]} Qxe5 {[%clk 00:01:06]} {[%emt
00:00:02]} 37. dxe5 {[%clk 00:01:11]} {[%emt 00:00:01]} g5 {[%clk 00:01:08]}
{[%emt 00:00:03]} 38. Rg1 {[%clk 00:01:14]} {[%emt 00:00:02]} Rg8 {[%clk
00:01:13]} 39. Kd3 {[%clk 00:01:11]} {[%emt 00:00:08]} 1-0

[Event "Ruzomberok Closed 2020 - 3. turnaj"]
[Site "Ruzomberok, Slovakia"]
[Date "2020.09.05"]
[Round "3.2"]
[White "Holly, Andrej"]
[Black "Sustek, Adam"]
[Result "1-0"]
[TimeControl "10m + 5s"]
[WhiteElo "1714"]
[BlackElo "1377"]

1. Nf3 {[%clk 00:10:09]} Nf6 {[%clk 00:10:04]} {[%emt 00:00:06]} 2. g3 {[%clk
00:10:12]} {[%emt 00:00:02]} e6 {[%clk 00:10:07]} {[%emt 00:00:02]} 3. Bg2
{[%clk 00:10:16]} {[%emt 00:00:01]} d5 {[%clk 00:10:07]} {[%emt 00:00:05]} 4.
O-O {[%clk 00:10:20]} {[%emt 00:00:02]} Bd6 {[%clk 00:10:05]} {[%emt 00:00:06]}
5. d3 {[%clk 00:10:15]} {[%emt 00:00:10]} O-O {[%clk 00:10:03]} {[%emt
00:00:07]} 6. Nbd2 {[%clk 00:10:19]} {[%emt 00:00:01]} Nc6 {[%clk 00:09:53]}
{[%emt 00:00:15]} 7. c3 {[%clk 00:10:20]} {[%emt 00:00:03]} e5 {[%clk
00:09:14]} {[%emt 00:00:45]} 8. e4 {[%clk 00:10:21]} {[%emt 00:00:04]} dxe4
{[%clk 00:09:05]} {[%emt 00:00:14]} 9. dxe4 {[%clk 00:10:25]} Be6 {[%clk
00:09:07]} {[%emt 00:00:02]} 10. Qc2 {[%clk 00:10:06]} {[%emt 00:00:25]} Qe7
{[%clk 00:08:52]} {[%emt 00:00:19]} 11. Ng5 {[%clk 00:10:01]} {[%emt 00:00:10]}
Bd7 {[%clk 00:08:38]} {[%emt 00:00:19]} 12. Nc4 {[%clk 00:09:49]} {[%emt
00:00:18]} h6 {[%clk 00:08:06]} {[%emt 00:00:37]} 13. Nf3 {[%clk 00:09:53]}
{[%emt 00:00:01]} Be6 {[%clk 00:07:44]} {[%emt 00:00:27]} 14. Ne3 {[%clk
00:09:56]} {[%emt 00:00:02]} Rad8 {[%clk 00:06:44]} {[%emt 00:01:05]} 15. Nh4
{[%clk 00:10:00]} {[%emt 00:00:01]} g6 {[%clk 00:06:43]} {[%emt 00:00:06]} 16.
Nd5 {[%clk 00:09:49]} {[%emt 00:00:16]} Nxd5 {[%clk 00:06:10]} {[%emt
00:00:37]} 17. exd5 {[%clk 00:09:48]} {[%emt 00:00:06]} g5 {[%clk 00:05:22]}
{[%emt 00:00:53]} 18. dxe6 {[%clk 00:09:03]} {[%emt 00:00:51]} gxh4 {[%clk
00:05:18]} {[%emt 00:00:08]} 19. Bxh6 {[%clk 00:09:01]} {[%emt 00:00:08]} Rfe8
{[%clk 00:05:10]} {[%emt 00:00:13]} 20. exf7+ {[%clk 00:08:21]} {[%emt
00:00:44]} Qxf7 {[%clk 00:03:37]} {[%emt 00:01:38]} 21. Bd5 {[%clk 00:08:25]}
{[%emt 00:00:02]} Re6 {[%clk 00:03:22]} {[%emt 00:00:19]} 22. Bxe6 {[%clk
00:07:40]} {[%emt 00:00:51]} Qxe6 {[%clk 00:03:24]} {[%emt 00:00:02]} 23. Qb3
{[%clk 00:07:38]} {[%emt 00:00:08]} Qxb3 {[%clk 00:03:20]} {[%emt 00:00:09]} 24.
axb3 {[%clk 00:07:41]} {[%emt 00:00:02]} hxg3 {[%clk 00:03:23]} {[%emt
00:00:02]} 25. fxg3 {[%clk 00:07:30]} {[%emt 00:00:16]} Bc5+ {[%clk 00:03:14]}
{[%emt 00:00:14]} 26. Kg2 {[%clk 00:07:32]} {[%emt 00:00:02]} Rd2+ {[%clk
00:03:10]} {[%emt 00:00:09]} 27. Bxd2 {[%clk 00:07:35]} {[%emt 00:00:02]} 1-0